[Event "Titled Tuesday Blitz May 25 2021"]
[White "Nouri, Alekhine"]
[Black "Van Foreest, Jorden"]
[WhiteFideId "5216184"]
[BlackFideId "1039784"]
[WhiteElo "1894"]
[BlackElo "2622"]
[Result "0-1"]
[Round "02"]
[TimeControl "180+1"]
[Date "2021.05.25"]
[WhiteClock "0:00:22"]
[BlackClock "0:00:06"]

1. e4 {[%clk 0:02:54]}  c6 {[%clk 0:02:54]} 2. d4 {[%clk 0:02:54]}  d5 {[%clk 0:02:55]} 3. exd5 {[%clk 0:02:54]}  cxd5 {[%clk 0:02:52]} 4. Bd3 {[%clk 0:02:55]}  Nf6 {[%clk 0:02:51]} 5. c3 {[%clk 0:02:55]}  Nc6 {[%clk 0:02:47]} 6. Bf4 {[%clk 0:02:55]}  g6 {[%clk 0:02:47]} 7. Nd2 {[%clk 0:02:56]}  Bf5 {[%clk 0:02:42]} 8. Bxf5 {[%clk 0:02:55]}  gxf5 {[%clk 0:02:34]} 9. Ne2 {[%clk 0:02:55]}  e6 {[%clk 0:02:33]} 10. Nf3 {[%clk 0:02:55]}  Bd6 {[%clk 0:02:31]} 11. Qd2 {[%clk 0:02:54]}  Ne4 {[%clk 0:02:30]} 12. Qe3 {[%clk 0:02:54]}  Qc7 {[%clk 0:02:27]} 13. Bxd6 {[%clk 0:02:54]}  Qxd6 {[%clk 0:02:26]} 14. Nf4 {[%clk 0:02:53]}  O-O-O {[%clk 0:02:24]} 15. Nd3 {[%clk 0:02:53]}  Kb8 {[%clk 0:02:24]} 16. O-O-O {[%clk 0:02:53]}  Na5 {[%clk 0:02:19]} 17. Nde5 {[%clk 0:02:47]}  Qc7 {[%clk 0:02:06]} 18. Ng5 {[%clk 0:02:25]}  Nd6 {[%clk 0:01:55]} 19. Qg3 {[%clk 0:02:11]}  Rhg8 {[%clk 0:01:52]} 20. Nexf7 {[%clk 0:02:04]}  Nxf7 {[%clk 0:01:20]} 21. Qxc7+ {[%clk 0:01:58]}  Kxc7 {[%clk 0:01:20]} 22. Nxf7 {[%clk 0:01:54]}  Rdf8 {[%clk 0:01:21]} 23. Ne5 {[%clk 0:01:53]}  Rxg2 {[%clk 0:01:21]} 24. Rdf1 {[%clk 0:01:52]}  Nc6 {[%clk 0:01:17]} 25. Nd3 {[%clk 0:01:50]}  Kd6 {[%clk 0:01:14]} 26. Kd2 {[%clk 0:01:49]}  f4 {[%clk 0:01:07]} 27. Ke2 {[%clk 0:01:48]}  f3+ {[%clk 0:01:04]} 28. Ke3 {[%clk 0:01:48]}  Rg4 {[%clk 0:00:54]} 29. Rfg1 {[%clk 0:01:44]}  Re4+ {[%clk 0:00:48]} 30. Kd2 {[%clk 0:01:44]}  Re2+ {[%clk 0:00:47]} 31. Kd1 {[%clk 0:01:44]}  e5 {[%clk 0:00:48]} 32. dxe5+ {[%clk 0:01:31]}  Nxe5 {[%clk 0:00:45]} 33. Nxe5 {[%clk 0:01:31]}  Rxe5 {[%clk 0:00:37]} 34. Re1 {[%clk 0:01:31]}  Rfe8 {[%clk 0:00:37]} 35. Rxe5 {[%clk 0:01:25]}  Rxe5 {[%clk 0:00:38]} 36. Re1 {[%clk 0:01:25]}  Rxe1+ {[%clk 0:00:25]} 37. Kxe1 {[%clk 0:01:26]}  Ke5 {[%clk 0:00:21]} 38. Kd2 {[%clk 0:01:25]}  Ke4 {[%clk 0:00:20]} 39. h3 {[%clk 0:01:25]}  h5 {[%clk 0:00:14]} 40. Kc2 {[%clk 0:01:23]}  d4 {[%clk 0:00:08]} 41. cxd4 {[%clk 0:01:22]}  Kxd4 {[%clk 0:00:09]} 42. Kd2 {[%clk 0:01:23]}  b5 {[%clk 0:00:08]} 43. a3 {[%clk 0:01:14]}  a5 {[%clk 0:00:08]} 44. Kc2 {[%clk 0:01:05]}  Kc4 {[%clk 0:00:06]} 45. h4 {[%clk 0:00:58]}  a4 {[%clk 0:00:03]} 46. Kd2 {[%clk 0:00:55]}  Kb3 {[%clk 0:00:03]} 47. Kc1 {[%clk 0:00:55]}  b4 {[%clk 0:00:02]} 48. axb4 {[%clk 0:00:56]}  Kxb4 {[%clk 0:00:03]} 49. Kd2 {[%clk 0:00:55]}  Kb3 {[%clk 0:00:03]} 50. Kc1 {[%clk 0:00:55]}  Kb4 {[%clk 0:00:03]} 51. Kd2 {[%clk 0:00:55]}  Kc4 {[%clk 0:00:04]} 52. Kc2 {[%clk 0:00:56]}  Kd4 {[%clk 0:00:04]} 53. Kd2 {[%clk 0:00:56]}  Ke4 {[%clk 0:00:04]} 54. Kc3 {[%clk 0:00:56]}  Kf4 {[%clk 0:00:05]} 55. Kb4 {[%clk 0:00:57]}  Kg4 {[%clk 0:00:05]} 56. Kxa4 {[%clk 0:00:58]}  Kxh4 {[%clk 0:00:04]} 57. b4 {[%clk 0:00:59]}  Kg4 {[%clk 0:00:03]} 58. b5 {[%clk 0:00:59]}  h4 {[%clk 0:00:04]} 59. b6 {[%clk 0:01:00]}  h3 {[%clk 0:00:05]} 60. b7 {[%clk 0:01:01]}  h2 {[%clk 0:00:06]} 61. b8=Q {[%clk 0:01:01]}  h1=Q {[%clk 0:00:07]} 62. Qg8+ {[%clk 0:01:00]}  Kf4 {[%clk 0:00:07]} 63. Qc4+ {[%clk 0:00:55]}  Kf5 {[%clk 0:00:07]} 64. Qd5+ {[%clk 0:00:55]}  Kg4 {[%clk 0:00:07]} 65. Qe4+ {[%clk 0:00:55]}  Kh3 {[%clk 0:00:05]} 66. Qg6 {[%clk 0:00:54]}  Qa1+ {[%clk 0:00:04]} 67. Kb4 {[%clk 0:00:54]}  Qb2+ {[%clk 0:00:04]} 68. Kc4 {[%clk 0:00:51]}  Qxf2 {[%clk 0:00:04]} 69. Qf5+ {[%clk 0:00:46]}  Kg2 {[%clk 0:00:04]} 70. Qg4+ {[%clk 0:00:43]}  Qg3 {[%clk 0:00:04]} 71. Qe4 {[%clk 0:00:43]}  Kf2 {[%clk 0:00:02]} 72. Kd3 {[%clk 0:00:43]}  Qd6+ {[%clk 0:00:02]} 73. Kc2 {[%clk 0:00:44]}  Qc7+ {[%clk 0:00:02]} 74. Kd2 {[%clk 0:00:44]}  Qd7+ {[%clk 0:00:03]} 75. Kc2 {[%clk 0:00:44]}  Qc7+ {[%clk 0:00:03]} 76. Kd2 {[%clk 0:00:45]}  Qa5+ {[%clk 0:00:03]} 77. Kd1 {[%clk 0:00:44]}  Qg5 {[%clk 0:00:04]} 78. Qc2+ {[%clk 0:00:39]}  Kg1 {[%clk 0:00:04]} 79. Qb3 {[%clk 0:00:21]}  f2 {[%clk 0:00:04]} 80. Qb6 {[%clk 0:00:22]}  Qd5+ {[%clk 0:00:04]} 81. Ke2 {[%clk 0:00:21]}  Qe4+ {[%clk 0:00:05]} 82. Kd2 {[%clk 0:00:22]}  Qf4+ {[%clk 0:00:05]} 83. Ke2 {[%clk 0:00:22]}  Qe4+ {[%clk 0:00:05]} 84. Kd2 {[%clk 0:00:22]}  Kg2 {[%clk 0:00:06]} 0-1


[Site "https://www.chess.com"]

[Event "Titled Tuesday Blitz May 25 2021"]
[White "Ohanyan, Emin"]
[Black "Xiong, Jeffery"]
[WhiteFideId "13312022"]
[BlackFideId "2047640"]
[WhiteElo "1648"]
[BlackElo "2724"]
[Result "0-1"]
[Round "02"]
[TimeControl "180+1"]
[Date "2021.05.25"]
[WhiteClock "0:00:02"]
[BlackClock "0:00:10"]

1. e4 {[%clk 0:02:55]}  c5 {[%clk 0:02:59]} 2. Nf3 {[%clk 0:02:55]}  Nc6 {[%clk 0:02:59]} 3. Nc3 {[%clk 0:02:54]}  e6 {[%clk 0:02:59]} 4. d4 {[%clk 0:02:54]}  cxd4 {[%clk 0:03:00]} 5. Nxd4 {[%clk 0:02:54]}  a6 {[%clk 0:03:01]} 6. Nxc6 {[%clk 0:02:46]}  bxc6 {[%clk 0:03:01]} 7. Bd3 {[%clk 0:02:46]}  d5 {[%clk 0:03:02]} 8. O-O {[%clk 0:02:45]}  Qc7 {[%clk 0:03:02]} 9. Re1 {[%clk 0:02:37]}  Bb7 {[%clk 0:03:03]} 10. Qf3 {[%clk 0:02:33]}  Bd6 {[%clk 0:03:02]} 11. exd5 {[%clk 0:02:13]}  cxd5 {[%clk 0:03:02]} 12. Nxd5 {[%clk 0:02:14]}  Qa5 {[%clk 0:02:59]} 13. b4 {[%clk 0:01:56]}  Bxb4 {[%clk 0:02:01]} 14. Nf6+ {[%clk 0:00:58]}  Nxf6 {[%clk 0:02:01]} 15. Qxb7 {[%clk 0:00:59]}  O-O {[%clk 0:02:02]} 16. Rd1 {[%clk 0:00:45]}  Rab8 {[%clk 0:01:57]} 17. Qxa6 {[%clk 0:00:24]}  Qxa6 {[%clk 0:01:58]} 18. Bxa6 {[%clk 0:00:25]}  Bc3 {[%clk 0:01:58]} 19. Ba3 {[%clk 0:00:26]}  Rfd8 {[%clk 0:00:35]} 20. Rxd8+ {[%clk 0:00:24]}  Rxd8 {[%clk 0:00:35]} 21. Rb1 {[%clk 0:00:24]}  h5 {[%clk 0:00:32]} 22. Be7 {[%clk 0:00:14]}  Ra8 {[%clk 0:00:31]} 23. Bxf6 {[%clk 0:00:13]}  gxf6 {[%clk 0:00:27]} 24. Bc4 {[%clk 0:00:13]}  f5 {[%clk 0:00:26]} 25. Kf1 {[%clk 0:00:13]}  Kg7 {[%clk 0:00:24]} 26. Rd1 {[%clk 0:00:12]}  Kf6 {[%clk 0:00:24]} 27. h3 {[%clk 0:00:13]}  h4 {[%clk 0:00:24]} 28. Ke2 {[%clk 0:00:13]}  Rc8 {[%clk 0:00:22]} 29. Bb3 {[%clk 0:00:13]}  Bb4 {[%clk 0:00:21]} 30. Rd4 {[%clk 0:00:12]}  Bc5 {[%clk 0:00:17]} 31. Rxh4 {[%clk 0:00:12]}  Rg8 {[%clk 0:00:18]} 32. Rc4 {[%clk 0:00:12]}  Bd6 {[%clk 0:00:17]} 33. Kf1 {[%clk 0:00:11]}  f4 {[%clk 0:00:17]} 34. a4 {[%clk 0:00:11]}  Ra8 {[%clk 0:00:17]} 35. Rc6 {[%clk 0:00:10]}  Ke5 {[%clk 0:00:17]} 36. Rb6 {[%clk 0:00:10]}  Bc5 {[%clk 0:00:17]} 37. Rb5 {[%clk 0:00:11]}  Kd6 {[%clk 0:00:17]} 38. Ke2 {[%clk 0:00:11]}  f5 {[%clk 0:00:17]} 39. h4 {[%clk 0:00:07]}  e5 {[%clk 0:00:17]} 40. a5 {[%clk 0:00:06]}  e4 {[%clk 0:00:17]} 41. Bc4 {[%clk 0:00:05]}  Kc6 {[%clk 0:00:17]} 42. a6 {[%clk 0:00:05]}  Rd8 {[%clk 0:00:14]} 43. Rb1 {[%clk 0:00:04]}  Rh8 {[%clk 0:00:08]} 44. Rh1 {[%clk 0:00:03]}  Kb6 {[%clk 0:00:08]} 45. h5 {[%clk 0:00:03]}  Rh6 {[%clk 0:00:08]} 46. f3 {[%clk 0:00:02]}  Ka5 {[%clk 0:00:08]} 47. Rh2 {[%clk 0:00:01]}  Kb4 {[%clk 0:00:08]} 48. Bd5 {[%clk 0:00:01]}  e3 {[%clk 0:00:09]} 49. Rh3 {[%clk 0:00:01]}  Rxa6 {[%clk 0:00:09]} 50. h6 {[%clk 0:00:01]}  Bd4 {[%clk 0:00:09]} 51. h7 {[%clk 0:00:01]}  Bh8 {[%clk 0:00:10]} 52. Bb3 {[%clk 0:00:02]}  Kc3 {[%clk 0:00:10]} 53. Rh5 {[%clk 0:00:02]}  Rd6 {[%clk 0:00:11]} 54. Rxf5 {[%clk 0:00:02]}  Rd2+ {[%clk 0:00:12]} 55. Ke1 {[%clk 0:00:03]}  Rxg2 {[%clk 0:00:11]} 56. Rc5+ {[%clk 0:00:03]}  Kb2 {[%clk 0:00:11]} 57. Rd5 {[%clk 0:00:02]}  Bc3+ {[%clk 0:00:10]} 58. Kf1 {[%clk 0:00:02]}  e2+ {[%clk 0:00:09]} 59. Kxg2 {[%clk 0:00:03]}  e1=Q {[%clk 0:00:10]} 60. Rd7 {[%clk 0:00:01]}  Qg3+ {[%clk 0:00:09]} 61. Kh1 {[%clk 0:00:01]}  Qh3+ {[%clk 0:00:10]} 62. Kg1 {[%clk 0:00:02]}  Qxd7 {[%clk 0:00:10]} 63. h8=Q {[%clk 0:00:02]}  Bxh8 {[%clk 0:00:10]} 0-1


[Site "https://www.chess.com"]

[Event "Titled Tuesday Blitz May 25 2021"]
[White "Popilski, Gil"]
[Black "Aravindh, Chithambaram VR."]
[WhiteFideId "2809060"]
[BlackFideId "5072786"]
[WhiteElo "2537"]
[BlackElo "2600"]
[Result "0-1"]
[Round "02"]
[TimeControl "180+1"]
[Date "2021.05.25"]
[WhiteClock "0:00:09"]
[BlackClock "0:00:24"]

1. e4 {[%clk 0:02:27]}  g6 {[%clk 0:03:00]} 2. d4 {[%clk 0:02:26]}  Bg7 {[%clk 0:03:00]} 3. Nf3 {[%clk 0:02:26]}  d6 {[%clk 0:02:59]} 4. Be2 {[%clk 0:02:26]}  Nf6 {[%clk 0:02:59]} 5. Nc3 {[%clk 0:02:26]}  O-O {[%clk 0:02:59]} 6. O-O {[%clk 0:02:25]}  Nc6 {[%clk 0:02:59]} 7. d5 {[%clk 0:02:24]}  Nb8 {[%clk 0:02:59]} 8. a4 {[%clk 0:02:24]}  e5 {[%clk 0:02:54]} 9. dxe6 {[%clk 0:02:23]}  Bxe6 {[%clk 0:02:54]} 10. h3 {[%clk 0:02:23]}  Nc6 {[%clk 0:02:54]} 11. a5 {[%clk 0:02:22]}  a6 {[%clk 0:02:53]} 12. Bg5 {[%clk 0:02:21]}  h6 {[%clk 0:02:51]} 13. Be3 {[%clk 0:02:16]}  Re8 {[%clk 0:02:48]} 14. Re1 {[%clk 0:01:49]}  d5 {[%clk 0:02:33]} 15. exd5 {[%clk 0:01:42]}  Nxd5 {[%clk 0:02:34]} 16. Nxd5 {[%clk 0:01:42]}  Qxd5 {[%clk 0:02:30]} 17. c3 {[%clk 0:01:38]}  Rad8 {[%clk 0:02:24]} 18. Qa4 {[%clk 0:01:36]}  Qb3 {[%clk 0:02:20]} 19. Qh4 {[%clk 0:01:33]}  Ne7 {[%clk 0:01:37]} 20. g4 {[%clk 0:01:22]}  g5 {[%clk 0:01:26]} 21. Bxg5 {[%clk 0:01:13]}  Ng6 {[%clk 0:01:12]} 22. Qh5 {[%clk 0:01:11]}  hxg5 {[%clk 0:01:11]} 23. Nxg5 {[%clk 0:01:12]}  Nf4 {[%clk 0:01:03]} 24. Qh7+ {[%clk 0:01:11]}  Kf8 {[%clk 0:01:04]} 25. Bd1 {[%clk 0:00:54]}  Qd5 {[%clk 0:00:52]} 26. Ne4 {[%clk 0:00:44]}  f5 {[%clk 0:00:50]} 27. c4 {[%clk 0:00:19]}  Qe5 {[%clk 0:00:40]} 28. Ba4 {[%clk 0:00:16]}  fxe4 {[%clk 0:00:35]} 29. Bxe8 {[%clk 0:00:16]}  Rxe8 {[%clk 0:00:32]} 30. Rxe4 {[%clk 0:00:15]}  Nxh3+ {[%clk 0:00:31]} 31. Kf1 {[%clk 0:00:12]}  Ng5 {[%clk 0:00:24]} 32. Rxe5 {[%clk 0:00:09]} 0-1


[Site "https://www.chess.com"]

[Event "Titled Tuesday Blitz May 25 2021"]
[White "Principe, Gerson"]
[Black "Shkapenko, Pavel"]
[WhiteFideId "3804550"]
[BlackFideId "4151933"]
[WhiteElo "2280"]
[BlackElo "2386"]
[Result "1/2-1/2"]
[Round "02"]
[TimeControl "180+1"]
[Date "2021.05.25"]
[WhiteClock "0:00:22"]
[BlackClock "0:00:46"]

1. d4 {[%clk 0:03:00]}  Nf6 {[%clk 0:02:57]} 2. Nf3 {[%clk 0:03:00]}  e6 {[%clk 0:02:58]} 3. c4 {[%clk 0:02:58]}  Bb4+ {[%clk 0:02:56]} 4. Bd2 {[%clk 0:02:57]}  Qe7 {[%clk 0:02:55]} 5. g3 {[%clk 0:02:58]}  Nc6 {[%clk 0:02:55]} 6. Nc3 {[%clk 0:02:56]}  Bxc3 {[%clk 0:02:55]} 7. Bxc3 {[%clk 0:02:57]}  Ne4 {[%clk 0:02:55]} 8. Rc1 {[%clk 0:02:57]}  O-O {[%clk 0:02:54]} 9. Bg2 {[%clk 0:02:41]}  d6 {[%clk 0:02:50]} 10. O-O {[%clk 0:02:38]}  Nxc3 {[%clk 0:02:50]} 11. Rxc3 {[%clk 0:02:37]}  e5 {[%clk 0:02:51]} 12. d5 {[%clk 0:02:38]}  Nb8 {[%clk 0:02:50]} 13. b4 {[%clk 0:02:35]}  a5 {[%clk 0:02:50]} 14. a3 {[%clk 0:02:34]}  Bg4 {[%clk 0:02:42]} 15. c5 {[%clk 0:02:22]}  Na6 {[%clk 0:02:40]} 16. cxd6 {[%clk 0:01:48]}  cxd6 {[%clk 0:02:38]} 17. Qb1 {[%clk 0:01:41]}  Bxf3 {[%clk 0:02:37]} 18. Bxf3 {[%clk 0:01:39]}  axb4 {[%clk 0:02:31]} 19. axb4 {[%clk 0:01:39]}  Qd8 {[%clk 0:02:32]} 20. Rfc1 {[%clk 0:01:24]}  Qb6 {[%clk 0:02:31]} 21. Rb3 {[%clk 0:01:25]}  f5 {[%clk 0:02:31]} 22. Bg2 {[%clk 0:01:18]}  g6 {[%clk 0:02:26]} 23. e3 {[%clk 0:01:18]}  Rac8 {[%clk 0:02:25]} 24. Bf1 {[%clk 0:01:12]}  Rc7 {[%clk 0:01:47]} 25. Bxa6 {[%clk 0:01:02]}  Rxc1+ {[%clk 0:01:35]} 26. Qxc1 {[%clk 0:01:03]}  Qxa6 {[%clk 0:01:36]} 27. Qc7 {[%clk 0:00:54]}  Rf7 {[%clk 0:01:35]} 28. Qc8+ {[%clk 0:00:48]}  Kg7 {[%clk 0:01:34]} 29. Rc3 {[%clk 0:00:41]}  Qb6 {[%clk 0:01:32]} 30. Qe8 {[%clk 0:00:31]}  f4 {[%clk 0:00:59]} 31. exf4 {[%clk 0:00:25]}  exf4 {[%clk 0:00:59]} 32. Rc8 {[%clk 0:00:25]}  fxg3 {[%clk 0:00:57]} 33. Qg8+ {[%clk 0:00:25]}  Kf6 {[%clk 0:00:57]} 34. hxg3 {[%clk 0:00:25]}  Qxb4 {[%clk 0:00:48]} 35. Qd8+ {[%clk 0:00:24]}  Kg7 {[%clk 0:00:48]} 36. Qg8+ {[%clk 0:00:22]}  Kf6 {[%clk 0:00:48]} 37. Qd8+ {[%clk 0:00:22]}  Kg7 {[%clk 0:00:46]} 38. Qg8+ {[%clk 0:00:22]}  Kf6 {[%clk 0:00:46]} 1/2-1/2


[Site "https://www.chess.com"]

[Event "Titled Tuesday Blitz May 25 2021"]
[White "Przybylski, Wojciech"]
[Black "Nitin, S."]
[WhiteFideId "1117599"]
[BlackFideId "5018277"]
[WhiteElo "2317"]
[BlackElo "2431"]
[Result "0-1"]
[Round "02"]
[TimeControl "180+1"]
[Date "2021.05.25"]
[WhiteClock "0:00:07"]
[BlackClock "0:00:13"]

1. e4 {[%clk 0:03:00]}  c5 {[%clk 0:02:59]} 2. Nf3 {[%clk 0:03:00]}  b6 {[%clk 0:02:56]} 3. c3 {[%clk 0:02:57]}  Bb7 {[%clk 0:02:56]} 4. Bd3 {[%clk 0:02:56]}  Nf6 {[%clk 0:02:52]} 5. Qe2 {[%clk 0:02:55]}  d5 {[%clk 0:02:51]} 6. e5 {[%clk 0:02:54]}  Ne4 {[%clk 0:02:51]} 7. Bc2 {[%clk 0:02:52]}  c4 {[%clk 0:02:44]} 8. b3 {[%clk 0:02:50]}  cxb3 {[%clk 0:02:38]} 9. axb3 {[%clk 0:02:47]}  e6 {[%clk 0:02:38]} 10. d3 {[%clk 0:02:38]}  Nc5 {[%clk 0:02:37]} 11. O-O {[%clk 0:02:36]}  Be7 {[%clk 0:02:37]} 12. d4 {[%clk 0:02:31]}  Ncd7 {[%clk 0:02:37]} 13. Ba3 {[%clk 0:02:24]}  Nc6 {[%clk 0:02:36]} 14. Nbd2 {[%clk 0:02:19]}  a5 {[%clk 0:02:35]} 15. Bd3 {[%clk 0:01:59]}  O-O {[%clk 0:02:32]} 16. h4 {[%clk 0:01:55]}  h6 {[%clk 0:02:29]} 17. Qe3 {[%clk 0:01:51]}  Re8 {[%clk 0:02:25]} 18. Bxe7 {[%clk 0:01:46]}  Qxe7 {[%clk 0:02:26]} 19. Qe2 {[%clk 0:01:43]}  Rac8 {[%clk 0:02:22]} 20. Rac1 {[%clk 0:01:41]}  Na7 {[%clk 0:02:10]} 21. Bb1 {[%clk 0:01:37]}  b5 {[%clk 0:02:06]} 22. Qd3 {[%clk 0:01:36]}  Nf8 {[%clk 0:02:07]} 23. g3 {[%clk 0:01:33]}  Ba6 {[%clk 0:02:04]} 24. Qe3 {[%clk 0:01:32]}  b4 {[%clk 0:02:00]} 25. c4 {[%clk 0:01:32]}  Qd8 {[%clk 0:01:31]} 26. Rfd1 {[%clk 0:01:26]}  Bb7 {[%clk 0:01:24]} 27. c5 {[%clk 0:01:24]}  Nb5 {[%clk 0:01:24]} 28. Bc2 {[%clk 0:01:13]}  Nc3 {[%clk 0:01:24]} 29. Re1 {[%clk 0:01:12]}  Bc6 {[%clk 0:01:22]} 30. Ra1 {[%clk 0:01:11]}  Ra8 {[%clk 0:01:21]} 31. Nh2 {[%clk 0:00:58]}  h5 {[%clk 0:01:03]} 32. Nhf3 {[%clk 0:00:57]}  g6 {[%clk 0:00:59]} 33. Kh2 {[%clk 0:00:56]}  Kg7 {[%clk 0:00:57]} 34. Ng5 {[%clk 0:00:54]}  Nh7 {[%clk 0:00:53]} 35. Nxh7 {[%clk 0:00:52]}  Kxh7 {[%clk 0:00:54]} 36. Nf3 {[%clk 0:00:52]}  Kg7 {[%clk 0:00:51]} 37. Ng5 {[%clk 0:00:46]}  Ra7 {[%clk 0:00:47]} 38. Qf4 {[%clk 0:00:42]}  Qe7 {[%clk 0:00:46]} 39. g4 {[%clk 0:00:37]}  hxg4 {[%clk 0:00:43]} 40. Qxg4 {[%clk 0:00:37]}  Rh8 {[%clk 0:00:44]} 41. Kg2 {[%clk 0:00:36]}  Rh5 {[%clk 0:00:43]} 42. Rh1 {[%clk 0:00:32]}  Kf8 {[%clk 0:00:40]} 43. Qf4 {[%clk 0:00:32]}  Ke8 {[%clk 0:00:38]} 44. Kh3 {[%clk 0:00:30]}  Kd8 {[%clk 0:00:36]} 45. Rhg1 {[%clk 0:00:29]}  Kc8 {[%clk 0:00:32]} 46. Bd3 {[%clk 0:00:27]}  Kb8 {[%clk 0:00:31]} 47. Rgc1 {[%clk 0:00:27]}  Qe8 {[%clk 0:00:22]} 48. Kg2 {[%clk 0:00:25]}  Qe7 {[%clk 0:00:19]} 49. Kg3 {[%clk 0:00:22]}  Be8 {[%clk 0:00:20]} 50. Kh3 {[%clk 0:00:22]}  Bc6 {[%clk 0:00:20]} 51. Re1 {[%clk 0:00:21]}  Qf8 {[%clk 0:00:20]} 52. Qf6 {[%clk 0:00:21]}  Qg8 {[%clk 0:00:19]} 53. Kg3 {[%clk 0:00:20]}  Qh8 {[%clk 0:00:18]} 54. Rh1 {[%clk 0:00:20]}  Qxf6 {[%clk 0:00:18]} 55. exf6 {[%clk 0:00:20]}  Kc7 {[%clk 0:00:18]} 56. Rhe1 {[%clk 0:00:19]}  Kd8 {[%clk 0:00:17]} 57. f4 {[%clk 0:00:19]}  a4 {[%clk 0:00:16]} 58. bxa4 {[%clk 0:00:19]}  Rxa4 {[%clk 0:00:17]} 59. Rxa4 {[%clk 0:00:19]}  Bxa4 {[%clk 0:00:18]} 60. Ra1 {[%clk 0:00:18]}  Ke8 {[%clk 0:00:17]} 61. Rc1 {[%clk 0:00:18]}  Rh8 {[%clk 0:00:15]} 62. Bc2 {[%clk 0:00:18]}  b3 {[%clk 0:00:14]} 63. Bd3 {[%clk 0:00:17]}  Na2 {[%clk 0:00:12]} 64. Rb1 {[%clk 0:00:17]}  Rf8 {[%clk 0:00:11]} 65. Nf3 {[%clk 0:00:16]}  Nb4 {[%clk 0:00:11]} 66. Be2 {[%clk 0:00:15]}  Nc2 {[%clk 0:00:11]} 67. Bd3 {[%clk 0:00:13]}  Kd7 {[%clk 0:00:10]} 68. Ne5+ {[%clk 0:00:13]}  Kc7 {[%clk 0:00:10]} 69. Bxc2 {[%clk 0:00:12]}  bxc2 {[%clk 0:00:10]} 70. Ra1 {[%clk 0:00:13]}  Rb8 {[%clk 0:00:09]} 71. Nd3 {[%clk 0:00:11]}  Rb1 {[%clk 0:00:09]} 72. Rxa4 {[%clk 0:00:11]}  Rb3 {[%clk 0:00:09]} 73. Ra7+ {[%clk 0:00:06]}  Kb8 {[%clk 0:00:08]} 74. Ra1 {[%clk 0:00:05]}  Rxd3+ {[%clk 0:00:08]} 75. Kf2 {[%clk 0:00:05]}  Rd1 {[%clk 0:00:09]} 76. Ra2 {[%clk 0:00:05]}  c1=Q {[%clk 0:00:09]} 77. Re2 {[%clk 0:00:05]}  Rd2 {[%clk 0:00:09]} 78. h5 {[%clk 0:00:05]}  Rxe2+ {[%clk 0:00:09]} 79. Kxe2 {[%clk 0:00:05]}  gxh5 {[%clk 0:00:10]} 80. Kf3 {[%clk 0:00:05]}  Qc3+ {[%clk 0:00:10]} 81. Kg2 {[%clk 0:00:05]}  Qxd4 {[%clk 0:00:10]} 82. Kh3 {[%clk 0:00:06]}  Qxf6 {[%clk 0:00:10]} 83. c6 {[%clk 0:00:04]}  d4 {[%clk 0:00:10]} 84. c7+ {[%clk 0:00:04]}  Kxc7 {[%clk 0:00:11]} 85. Kg3 {[%clk 0:00:05]}  d3 {[%clk 0:00:11]} 86. Kh3 {[%clk 0:00:05]}  d2 {[%clk 0:00:12]} 87. Kg2 {[%clk 0:00:06]}  d1=Q {[%clk 0:00:12]} 88. Kh3 {[%clk 0:00:07]}  Qg4+ {[%clk 0:00:13]} 89. Kh2 {[%clk 0:00:07]}  Qfh4# {[%clk 0:00:13]} 0-1


[Site "https://www.chess.com"]

[Event "Titled Tuesday Blitz May 25 2021"]
[White "Reprintsev, Alexander"]
[Black "Molina, Roberto Junio Brito"]
[WhiteFideId "14100541"]
[BlackFideId "2109450"]
[WhiteElo "2177"]
[BlackElo "2402"]
[Result "0-1"]
[Round "02"]
[TimeControl "180+1"]
[Date "2021.05.25"]
[WhiteClock "0:00:02"]
[BlackClock "0:00:58"]

1. e4 {[%clk 0:02:43]}  c6 {[%clk 0:02:59]} 2. Nc3 {[%clk 0:02:37]}  d5 {[%clk 0:03:00]} 3. Nf3 {[%clk 0:02:36]}  Bg4 {[%clk 0:02:57]} 4. h3 {[%clk 0:02:36]}  Bxf3 {[%clk 0:02:56]} 5. Qxf3 {[%clk 0:02:36]}  e6 {[%clk 0:02:57]} 6. b3 {[%clk 0:02:29]}  Nf6 {[%clk 0:02:56]} 7. e5 {[%clk 0:02:16]}  Nfd7 {[%clk 0:02:54]} 8. Qg3 {[%clk 0:02:15]}  c5 {[%clk 0:02:53]} 9. f4 {[%clk 0:02:15]}  g6 {[%clk 0:02:52]} 10. Bb2 {[%clk 0:01:27]}  Nb6 {[%clk 0:02:37]} 11. h4 {[%clk 0:01:26]}  h5 {[%clk 0:02:30]} 12. O-O-O {[%clk 0:01:15]}  Nc6 {[%clk 0:02:27]} 13. Be2 {[%clk 0:00:10]}  Be7 {[%clk 0:02:22]} 14. Qf2 {[%clk 0:00:11]}  Rc8 {[%clk 0:02:20]} 15. Rdg1 {[%clk 0:00:11]}  Nd4 {[%clk 0:02:17]} 16. g4 {[%clk 0:00:12]}  Nxe2+ {[%clk 0:02:17]} 17. Nxe2 {[%clk 0:00:12]}  hxg4 {[%clk 0:02:18]} 18. Rxg4 {[%clk 0:00:11]}  Rh5 {[%clk 0:02:18]} 19. Ng3 {[%clk 0:00:11]}  Rh8 {[%clk 0:02:09]} 20. h5 {[%clk 0:00:11]}  gxh5 {[%clk 0:02:10]} 21. Rxh5 {[%clk 0:00:11]}  Kd7 {[%clk 0:02:06]} 22. Rxh8 {[%clk 0:00:10]}  Qxh8 {[%clk 0:02:06]} 23. f5 {[%clk 0:00:11]}  Rg8 {[%clk 0:02:03]} 24. fxe6+ {[%clk 0:00:10]}  fxe6 {[%clk 0:02:02]} 25. Rf4 {[%clk 0:00:11]}  Rxg3 {[%clk 0:01:51]} 26. Bc3 {[%clk 0:00:05]}  Rxc3 {[%clk 0:01:48]} 27. Kb2 {[%clk 0:00:06]}  Rh3 {[%clk 0:01:43]} 28. Rf7 {[%clk 0:00:05]}  Qxe5+ {[%clk 0:01:42]} 29. c3 {[%clk 0:00:06]}  Rh2 {[%clk 0:01:04]} 30. Qxc5 {[%clk 0:00:05]}  Rxd2+ {[%clk 0:01:04]} 31. Ka3 {[%clk 0:00:04]}  Qd6 {[%clk 0:01:01]} 32. b4 {[%clk 0:00:02]}  Nc4+ {[%clk 0:00:58]} 0-1


[Site "https://www.chess.com"]